Cogmind - Beta 9.6 @@@ ROGUE MODE // 2020.06.12 @ 17:12:44 Player: Demise Result: Self-destructed Performance ------------- Evolutions (3) 1500 Regions Visited (6) 1200 Robots Destroyed (80) 400 Value Destroyed (2144) 2144 Prototype IDs (30) 600 Alien Tech Used (0) 0 Bonus (454) 454 TOTAL SCORE: 6298 Bonus ------- High Alert Combat Kills 62 Follower Combat Kills 92 Aligned with FarCom 300 Cogmind --------- Core Integrity 619/700 Matter 286/300 Energy 150/150 System Corruption 0% Temperature Cool (0) Movement Rolling (170) Ox8 Location -7/Factory Parts ------- > --- POWER (1) -------- Micro Nuclear Core > --- PROPULSION (2) --- Armored Wheel > --- UTILITY (6) ------ High-capacity Storage Unit High-capacity Storage Unit High-capacity Storage Unit Advanced Signal Interpreter Advanced Terrain Scanner Advanced Terrain Scan Processor > --- WEAPON (4) ------- Longsword +1 > --- INVENTORY (28) --- Micro Nuclear Core Micro Nuclear Core Micro Nuclear Core Improved Treads Armored Treads Armored Treads Cryofiber Web Medium Storage Unit Large Storage Unit High-capacity Storage Unit High-capacity Matter Pod (200) Improved Sensor Array Experimental Sensor Array Improved Signal Interpreter Advanced Targeting Computer Weapon Cycler Transmission Jammer ECM Suite Improved Light Armor Plating Improved Medium Armor Plating Improved Medium Armor Plating Improved Medium Armor Plating Recalibrator Improved Field Recycling Unit (0) Light EM Pulse Cannon Advanced EMP Blaster Heavy Missile Launcher Plasma Cutter Peak State ------------ > --- POWER ------------ Micro Nuclear Core > --- PROPULSION ------- Compact Wheel Armored Wheel > --- UTILITY ---------- High-capacity Storage Unit High-capacity Storage Unit High-capacity Storage Unit Advanced Signal Interpreter Advanced Terrain Scan Processor Improved Field Recycling Unit > --- WEAPON ----------- Assault Rifle Light Assault Rifle Light Assault Rifle Longsword +1 > --- INVENTORY -------- Micro Nuclear Core Micro Nuclear Core Micro Nuclear Core Improved Treads Armored Treads Armored Treads Medium Storage Unit Large Storage Unit High-capacity Storage Unit High-capacity Matter Pod Improved Sensor Array Improved Sensor Array Experimental Sensor Array Improved Signal Interpreter Advanced Terrain Scanner Advanced Targeting Computer Weapon Cycler Transmission Jammer ECM Suite Improved Light Armor Plating Improved Medium Armor Plating Improved Medium Armor Plating Improved Medium Armor Plating Recalibrator Light EM Pulse Cannon Advanced EMP Blaster Heavy Missile Launcher Plasma Cutter [Rating: 40] Favorites ----------- Power Micro Nuclear Core Engine Light Ion Engine Power Core Micro Nuclear Core Propulsion Armored Wheel Treads Light Treads Leg Aluminum Leg Wheel Armored Wheel Utility High-capacity Storage Unit Device Long-range Terrain Scanner Storage High-capacity Storage Unit Processor Advanced Terrain Scan Processor Protection Light Armor Plating Weapon Light EM Pulse Cannon Energy Gun EM Pulse Gun Energy Cannon Light EM Pulse Cannon Ballistic Gun Light Assault Rifle Launcher Advanced EMP Blaster Special Weapon Mining Laser Slashing Weapon Longsword +1 Build | -11 -10 -10 -10 -9 -8 -7 ------- Run | Scr Mat Min Exi Min Mat Fac Slots Evolved 6 | . . . . . 4 2 Power . | . . . . . . . Propulsion . | . . . . . . . Utility 4 | . . . . . 4 . Weapon 2 | . . . . . . 2 Parts Attached 81 | 4 15 1 4 1 48 8 Power 5 | . 2 . . 1 2 . Engine 3 | . 2 . . 1 . . Core 2 | . . . . . 2 . Reactor . | . . . . . . . Propulsion 14 | 2 4 . . . 8 . Treads 2 | . 2 . . . . . Leg . | . . . . . . . Wheel 12 | 2 2 . . . 8 . Hover . | . . . . . . . Flight . | . . . . . . . Utility 25 | 1 2 . 2 . 16 4 Device 6 | . . . . . 3 3 Storage 9 | 1 2 . 2 . 4 . Processor 5 | . . . . . 4 1 Hackware . | . . . . . . . Protection 5 | . . . . . 5 . Artifact . | . . . . . . . Weapon 37 | 1 7 1 2 . 22 4 Energy Gun 10 | 1 3 . . . 6 . Energy Cannon 7 | . 3 . 1 . 3 . Ballistic Gun 10 | . . . . . 6 4 Ballistic Cannon . | . . . . . . . Launcher 1 | . . . . . 1 . Special Weapon 2 | . 1 1 . . . . Impact Weapon . | . . . . . . . Slashing Weapon 7 | . . . 1 . 6 . Piercing Weapon . | . . . . . . . Special Melee Weapon . | . . . . . . . Unidentified Prototypes 3 | . . . . . 3 . Parts Lost 17 | . 2 . . . 10 5 Power 1 | . . . . . 1 . Propulsion 6 | . 2 . . . 3 1 Utility 2 | . . . . . 2 . Weapon 8 | . . . . . 4 4 Highest Loss Streak 4 | . 2 . . . 3 4 Average Slot Usage (%) 98 | . 98 100 100 100 97 96 Engine 6 | . 14 14 14 14 1 . Core 4 | . . . . . 7 7 Treads 3 | . 11 . . . . . Wheel 18 | . 15 28 28 28 17 13 Device 1 | . . . . . 2 6 Storage 25 | . 28 28 28 28 23 23 Processor 12 | . . . . . 23 15 Protection 1 | . . . . . 2 . Energy Gun 5 | . 15 . . . 3 . Energy Cannon 6 | . 3 28 14 28 3 . Ballistic Gun 7 | . 8 . . . 8 20 Slashing Weapon 2 | . . . 2 . 2 7 Naked Turns . | . . . . . . . Heaviest Build 121 | 14 53 53 61 66 110 121 Greatest Support 40 | 20 40 24 24 24 28 28 Greatest Overweight (x) 35 | . 13 2 2 2 35 8 Average Overweight (x) 2 | . 1 2 2 2 2 3 Largest Inventory Capacity 28 | 8 16 16 18 18 28 28 Average Capacity 19 | 7 14 16 17 18 23 28 Most Carried 28 | 8 16 16 18 18 28 28 Average Carried 18 | 6 11 16 16 17 22 27 Final Capacity 28 | 8 16 16 18 18 28 28 Final Carried 28 | 8 16 16 18 18 27 28 Class Distribution -------------------- 51% | Mutant 30% | Hauler-Mutant 6% | Skirmisher 5% | Assassin 5% | Hauler-Assassin Dominant Class ---------------- Mutant | -10/Materials Mutant | -10/Mines Mutant | -10/Exiles Mutant | -9/Mines Hauler-Mutant | -8/Materials Hauler-Assassin | -7/Factory Resources | -11 -10 -10 -10 -9 -8 -7 ----------- Run | Scr Mat Min Exi Min Mat Fac Matter Collected 1585 | 398 363 . . 80 697 47 Remotely . | . . . . . . . Salvage Created 2861 | 219 647 . . 194 1709 92 Parts 175 | 18 47 . . 12 94 4 Haulers Intercepted 7 | . 2 . . . 5 . Recyclers Shooed 1 | . 1 . . . . . Parts Field Recycled 5 | . . . . . . 5 Retrieved Matter 33 | . . . . . . 33 Parts Self-Destructed . | . . . . . . . Prevented . | . . . . . . . Kills | -11 -10 -10 -10 -9 -8 -7 ------- Run | Scr Mat Min Exi Min Mat Fac Combat Hostiles Destroyed 54 | . 16 . . 6 30 2 Melee 6 | . . . . . 4 2 Guns 27 | . 11 . . . 16 . Cannons 13 | . 3 . . 5 5 . AOE 5 | . 2 . . 1 2 . Classes Destroyed 15 | 3 5 . . 1 5 1 Worker 4 | 2 . . . . 2 . Builder 2 | . 1 . . . 1 . Tunneler 5 | 5 . . . . . . Hauler 7 | . 2 . . . 5 . Recycler 1 | 1 . . . . . . Operator 1 | . . . . . 1 . Watcher 6 | . 2 . . . 4 . Swarmer 17 | . 6 . . 3 8 . Grunt 22 | . 10 . . 2 10 . Brawler 1 | . . . . . 1 . Duelist 2 | . . . . 1 1 . Protector 1 | . . . . . 1 . Sentry 6 | . . . . . 6 . Hunter 4 | . . . . . 3 1 Programmer 1 | . . . . . . 1 Best Kill Streak 4 | 3 3 . . 3 4 1 Combat Bots Only 4 | . 3 . . 3 4 1 Max Kills in Single Turn 2 | 1 2 . . 2 2 1 Gunslinging 1 | . . . . . 1 . Exploded 2 | . 2 . . 1 1 . Melee 1 | . . . . . 1 1 Uniques/NPCs Destroyed . | . . . . . . . Combat | -11 -10 -10 -10 -9 -8 -7 -------- Run | Scr Mat Min Exi Min Mat Fac Damage Taken 3107 | . 564 . . 195 1829 519 Core 631 | . 124 . . 66 360 81 Absorbed by Shields . | . . . . . . . Core Remaining (%) 52 | 100 . . . 24 34 . Volleys Fired 196 | 20 60 1 . 9 94 12 Largest 3 | 2 2 1 . 2 2 3 Hottest 112 | 60 112 100 . 112 112 60 Shots Fired 360 | 40 104 1 . 18 180 17 Gun 291 | 40 87 . . . 147 17 Cannon 67 | . 16 . . 18 33 . Launcher . | . . . . . . . Special 2 | . 1 1 . . . . Kinetic 173 | 20 42 . . . 94 17 Thermal 10 | 4 1 1 . . 4 . Explosive . | . . . . . . . Electromagnetic 177 | 16 61 . . 18 82 . Robot Hit Streak 28 | 8 17 . . 4 28 4 Robot Miss Streak 5 | 2 5 . . 1 3 3 Penetration Max . | . . . . . . . Secondary Targets 2 | . . . . . 2 . Max Gunslinging Chain 1 | . . . . . 1 . Shots Hit Robots 269 | 25 52 . . 11 164 17 Core Hits 125 | 11 32 . . 7 72 3 Critical Hits 3 | . . . . . 3 . Critical Kills 1 | . . . . . 1 . Critical Parts Destroyed 2 | . . . . . 2 . Melee Attacks 53 | . . . . . 43 10 Impact . | . . . . . . . Slashing 53 | . . . . . 43 10 Piercing . | . . . . . . . Sneak Attacks 3 | . . . . . 3 . Combat Hostiles . | . . . . . . . Follow-up Attacks . | . . . . . . . Damage Inflicted 6314 | 270 1120 . . 286 4151 487 Guns 2584 | 270 459 . . . 1713 142 Cannons 1090 | . 253 . . 252 585 . Explosions 689 | . 408 . . 34 247 . Melee 1951 | . . . . . 1606 345 Ramming . | . . . . . . . Kinetic 1164 | 78 165 . . . 779 142 Thermal 736 | 32 408 . . 34 262 . Explosive . | . . . . . . . Electromagnetic 2463 | 160 547 . . 252 1504 . Impact . | . . . . . . . Slashing 1951 | . . . . . 1606 345 Piercing . | . . . . . . . Highest Corruption 3 | . . . . . 3 . Average Corruption 2 | . . . . . 2 . Corruption Purged . | . . . . . . . Effects 13 | . . . . . 13 . Message Errors 3 | . . . . . 3 . Matter Fused 2 | . . . . . 2 . Heat Flow Errors 1 | . . . . . 1 . Energy Discharges 1 | . . . . . 1 . Data Loss (minor) 2 | . . . . . 2 . Targeting Errors 3 | . . . . . 3 . Weapon Failures 1 | . . . . . 1 . Overload Shots . | . . . . . . . Overflow Damage 626 | . 99 . . 7 508 12 Projectiles 62 | . 16 . . 7 39 . Explosions 97 | . 83 . . . 14 . Melee 467 | . . . . . 455 12 Knockbacks . | . . . . . . . Impact . | . . . . . . . Kinetic . | . . . . . . . Secondary . | . . . . . . . Self-Inflicted Damage 116 | . . . . 40 76 . Shots 4 | . . . . 1 3 . Rammed . | . . . . . . . Targets Rammed . | . . . . . . . Kicked . | . . . . . . . Crushed . | . . . . . . . Highest Temperature 249 | 60 240 20 . 216 249 6 Average Temperature 65 | 31 48 12 . 71 84 4 Received Heat Transfer 792 | . 213 . . 48 531 . Effects 1 | . 1 . . . . . Energy Bleed 1 | . 1 . . . . . Siege Activations . | . . . . . . . Robots Corrupted 3 | . . . . . 3 . Combat Hostiles 3 | . . . . . 3 . Parts Fried 16 | 1 1 . . . 14 . Impact Corruptions . | . . . . . . . Robots Melted . | . . . . . . . Combat Hostiles . | . . . . . . . Parts Melted 1 | . . . . . 1 . Heat Transferred 800 | 75 250 . . 50 425 . Parts Sabotaged . | . . . . . . . Parts Stolen . | . . . . . . . Parts Stripped . | . . . . . . . Power Chain Reactions 5 | . . . . 1 4 . Missiles Intercepted . | . . . . . . . Alert | -11 -10 -10 -10 -9 -8 -7 ------- Run | Scr Mat Min Exi Min Mat Fac Peak Influence 509 | 40 218 39 . 153 509 218 Average Influence 138 | 22 68 39 . 100 187 191 Maximum Alert Level 2 | . 1 . . . 2 1 Low Security (%) 78 | 100 99 100 . 100 71 13 Level 1 17 | . . . . . 19 86 Level 2 4 | . . . . . 9 . Level 3 . | . . . . . . . Level 4 . | . . . . . . . Level 5 . | . . . . . . . High Security . | . . . . . . . Max Security . | . . . . . . . Squads Dispatched 16 | . 6 . . 1 6 3 Investigation 11 | . 5 . . 1 3 2 Extermination 1 | . . . . . . 1 Reinforcement 2 | . 1 . . . 1 . Assault 2 | . . . . . 2 . Garrison . | . . . . . . . Intercept . | . . . . . . . Construction Impeded 1 | . . . . . 1 . Haulers Reinforced . | . . . . . . . Stealth | -11 -10 -10 -10 -9 -8 -7 --------- Run | Scr Mat Min Exi Min Mat Fac Distress Signals 5 | . . . . . 5 . Communications Jammed . | . . . . . . . Distress Signals . | . . . . . . . Times Spotted 98 | . 25 . . 12 59 2 Peak Tracking Total 8 | . 3 . . 4 8 2 Tactical Retreats 9 | . 1 . . 1 7 . Traps | -11 -10 -10 -10 -9 -8 -7 ------- Run | Scr Mat Min Exi Min Mat Fac Traps Triggered 5 | . 1 . . . 3 1 Indirectly . | . . . . . . . Trap Hack Attempts . | . . . . . . . Triggered . | . . . . . . . Disarmed . | . . . . . . . Reprogrammed . | . . . . . . . Reused . | . . . . . . . Traps Extracted . | . . . . . . . Installed . | . . . . . . . Triggered . | . . . . . . . Exploded 2 | . . . . . 2 . Machines | -11 -10 -10 -10 -9 -8 -7 ---------- Run | Scr Mat Min Exi Min Mat Fac Machines Disabled 6 | . 2 . . . 4 . Max in Single Turn 2 | . 2 . . . 1 . Garrison Access 1 | . . . . . 1 . Machines Sabotaged . | . . . . . . . Garrisons Compromised . | . . . . . . . Overloaded Fab Kills . | . . . . . . . Fab Network Shutdowns . | . . . . . . . Hacking | -11 -10 -10 -10 -9 -8 -7 --------- Run | Scr Mat Min Exi Min Mat Fac Machines Accessed 26 | . 9 . 2 1 11 3 Terminals 15 | . 6 . . . 9 . Fabricators 1 | . . . . . . 1 Repair Stations 3 | . 1 . . . 1 1 Recycling Units 2 | . 2 . . . . . Scanalyzers 1 | . . . . . . 1 Garrison Access 1 | . . . . . 1 . Total Hacks 71 | . 28 . 2 1 31 9 Successful 44 | . 19 . 2 1 16 6 Failed 26 | . 8 . . . 15 3 Catastrophic 4 | . . . . . 3 1 Database Lockouts 3 | . 3 . . . . . Manual 41 | . 19 . 1 . 21 . Terminals 49 | . 22 . . . 27 . Fabricators 1 | . . . . . . 1 Repair Stations 8 | . 4 . . . 2 2 Recycling Units 2 | . 2 . . . . . Scanalyzers 6 | . . . . . . 6 Garrison Access 2 | . . . . . 2 . Terminal Hacks 18 | . 10 . 2 1 5 . Record 2 | . . . 1 . 1 . Part Schematic 1 | . 1 . . . . . Prototype ID Bank 2 | . 2 . . . . . Open Door 1 | . . . . 1 . . Level Access Points 1 | . 1 . . . . . Branch Access Points 2 | . 1 . . . 1 . Unreport Threat 5 | . 3 . . . 2 . Locate Traps 2 | . 1 . . . 1 . Recall Investigation 1 | . 1 . . . . . EX-Prototype ID Bank 1 | . . . 1 . . . Fabricator Hacks . | . . . . . . . Repair Station Hacks 4 | . 2 . . . 2 . Scan Component 2 | . 1 . . . 1 . Repair 2 | . 1 . . . 1 . Recycling Unit Hacks . | . . . . . . . Scanalyzer 6 | . . . . . . 6 Insert Component 3 | . . . . . . 3 Analyze 3 | . . . . . . 3 Garrison Access Hacks . | . . . . . . . Unauthorized Hacks 16 | . 7 . . . 9 . Terminals 14 | . 5 . . . 9 . Track 4 | . 2 . . . 2 . Assimilate 1 | . . . . . 1 . Botnet 6 | . 2 . . . 4 . Disrupt 1 | . . . . . 1 . Operators 2 | . 1 . . . 1 . Fabricators . | . . . . . . . Repair Stations . | . . . . . . . Recycling Units 2 | . 2 . . . . . Tunnel 2 | . 2 . . . . . Scanalyzers . | . . . . . . . Garrison Access . | . . . . . . . Data Cores Recovered . | . . . . . . . Used . | . . . . . . . Hacking Detections 17 | . 4 . . . 10 3 Full Trace Events 5 | . 1 . . . 3 1 Feedback Events . | . . . . . . . Feedback Blocked . | . . . . . . . Robot Schematics Acquired . | . . . . . . . Robots Built . | . . . . . . . Matter . | . . . . . . . Time . | . . . . . . . Total Robot Build Rating . | . . . . . . . Part Schematics Acquired 4 | . 1 . . . . 3 Parts Built . | . . . . . . . Matter . | . . . . . . . Time . | . . . . . . . Total Part Build Rating . | . . . . . . . Parts Repaired 2 | . 1 . . . 1 . Time 58 | . 26 . . . 32 . Parts Recycled . | . . . . . . . Recycled Matter . | . . . . . . . Retrieved Matter . | . . . . . . . Retrieved Components . | . . . . . . . Parts Scanalyzed 3 | . . . . . . 3 Part Schematics Acquired 3 | . . . . . . 3 Parts Damaged . | . . . . . . . Bothacking | -11 -10 -10 -10 -9 -8 -7 ------------ Run | Scr Mat Min Exi Min Mat Fac Used RIF Installer . | . . . . . . . Robots Hacked . | . . . . . . . Non-combat . | . . . . . . . Combat . | . . . . . . . Robot Hacks Applied . | . . . . . . . Relay Couplers Released 1 | . . . . . 1 . Machine Destruction 1 | . . . . . 1 . Robots Rewired . | . . . . . . . Allies Hacked . | . . . . . . . Hacks Repelled . | . . . . . . . Allies | -11 -10 -10 -10 -9 -8 -7 -------- Run | Scr Mat Min Exi Min Mat Fac Total Allies 3 | . . . . 3 . . Largest Group 3 | . . . . 3 2 . Highest-Rated Group 40 | . . . . 40 24 . Highest-Rated Ally 16 | . . . . 16 16 . Total Orders . | . . . . . . . Ally Attacks 25 | . . . . 17 8 . Total Damage 225 | . . . . 153 72 . Kills 8 | . . . . 5 3 . Allies Corrupted . | . . . . . . . Allies Melted . | . . . . . . . Intel | -11 -10 -10 -10 -9 -8 -7 ------- Run | Scr Mat Min Exi Min Mat Fac Robot Analysis Total . | . . . . . . . Derelict Logs Recovered 3 | . . 1 . 2 . . Drone Launches . | . . . . . . . Drone Recoveries . | . . . . . . . Exploration | -11 -10 -10 -10 -9 -8 -7 ------------- Run | Scr Mat Min Exi Min Mat Fac Turns Passed 5448 | 142 1367 106 427 523 2430 453 Spaces Moved 3247 | 68 715 84 375 402 1354 249 Core 3 | . 1 . . . 2 . Treads 285 | . 285 . . . . . Legs . | . . . . . . . Wheels 2959 | 68 429 84 375 402 1352 249 Hover . | . . . . . . . Flight . | . . . . . . . Fastest Speed 80 | 80 80 110 110 110 110 125 Average Speed 120 | 80 134 110 110 110 118 131 Slowest Speed 1800 | 80 700 110 110 110 1800 170 Overloaded Moves . | . . . . . . . Propulsion Burnouts . | . . . . . . . Robots Hopped . | . . . . . . . Cave-ins Triggered . | . . . . . . . Exploration Rate (%) 47 | 3 88 27 67 71 71 5 Regions Visited 6 Branch Regions 3 Pre-discovered Areas 3 | . 2 . 1 . . . Known Exits Taken 3 | . 1 1 . . 1 . Unknown Exits Taken 3 | 1 . . 1 1 . . Scrap Searched 2 | . . . . 2 . . Spaces Dug 16 | . 1 . . . 13 2 Terrain Destroyed 78 | . 38 . . 6 32 2 Melee 15 | . . . . . 13 2 Projectile 1 | . 1 . . . . . AOE 62 | . 37 . . 6 19 . Actions | -11 -10 -10 -10 -9 -8 -7 --------- Run | Scr Mat Min Exi Min Mat Fac Total 4405 | 120 1025 94 390 469 1959 348 Wait 707 | 16 208 9 2 47 366 59 Move 3241 | 67 714 83 374 401 1353 249 Hop . | . . . . . . . Pick Up 62 | 7 13 . 5 5 25 7 Fast Attach 24 | 2 5 . . . 16 1 Attach 16 | 1 4 . . . 9 2 Detach 7 | . 4 . . . 3 . Swap 41 | 1 6 1 4 1 23 5 Drop 58 | 6 11 . 5 6 27 3 Fire 196 | 20 60 1 . 9 94 12 Melee 53 | . . . . . 43 10 Ram . | . . . . . . . Kick . | . . . . . . . Crush . | . . . . . . . Escape Stasis . | . . . . . . . Rewire . | . . . . . . . Trap . | . . . . . . . Miscellaneous . | . . . . . . . Route ------- -11/Scrapyard -10/Materials (discovered 5 exits: *Mat x3 / *Min x2) -10/Mines -10/Exiles -9/Mines -8/Materials (discovered 3 exits: *Fac x3) -7/Factory History --------- Turn | Location | Event 15 | -11/Scrapyard | Discovered new exit (range 3) 143 | -11/Scrapyard | Entered Materials 305 | -10/Materials | Build established: Mutant 490 | -10/Materials | Discovered new exit (range 16) 529 | -10/Materials | Repaired EM Pulse Gun 614 | -10/Materials | Identified exit to Materials 956 | -10/Materials | Identified exit to Mines 956 | -10/Materials | Central database locked down 1510 | -10/Materials | Entered Mines 1511 | -10/Mines | Met a Derelict bent on vengeance 1591 | -10/Mines | Identified exit to Exiles 1606 | -10/Mines | Assembled infested the area 1616 | -10/Mines | Entered Exiles 1633 | -10/Exiles | Discovered new exit (range 15) 1646 | -10/Exiles | Met 8R-AWN 1662 | -10/Exiles | Met EX-HEX 1714 | -10/Exiles | Met EX-DEC 1732 | -10/Exiles | Learned location of Zion (-7) 1843 | -10/Exiles | Met EX-BIN 1858 | -10/Exiles | Aligned with FarCom system 1859 | -10/Exiles | Given EX-Vault access code 1885 | -10/Exiles | Opened EX-Vault 1892 | -10/Exiles | Found Longsword +1 1919 | -10/Exiles | Warned to stay clear of 0b10 Research branches 2043 | -10/Exiles | Left Exiles lab with Longsword +1 2043 | -10/Exiles | Entered Mines 2050 | -9/Mines | Core integrity fell below 50% 2094 | -9/Mines | Learned 2 Materials zone layouts 2105 | -9/Mines | Learned 2 Materials zone layouts 2132 | -9/Mines | Met a Derelict shopkeep closing up shop 2232 | -9/Mines | Found a damaged Exp. Sensor Array with a note attached 2244 | -9/Mines | Found Prototype Device 2274 | -9/Mines | Assisted by bots powering up and referring to "LRC-V3" 2551 | -9/Mines | Discovered new exit (range 8) 2557 | -9/Mines | Received a Rocket Launcher from a helpful Derelict 2566 | -9/Mines | Entered Materials 2566 | -8/Materials | Accompanied by 2 allies 2566 | -8/Materials | Evolved 4 slots: Utility x4 2567 | -8/Materials | Identified exit to Factory 3437 | -8/Materials | Lost 3 parts (1u2w) 3778 | -8/Materials | Build established: Hauler-Mutant 3987 | -8/Materials | Discovered exit to Factory (range 9) 4733 | -8/Materials | Core integrity fell below 50% 4858 | -8/Materials | Discovered exit to Factory (range 11) 4933 | -8/Materials | Repaired Arm. Wheel 4966 | -8/Materials | First assault squad dispatched 4996 | -8/Materials | Entered Factory 4996 | -7/Factory | Evolved 2 slots: Weapon x2 5064 | -7/Factory | Identified Exp. Sensor Array 5418 | -7/Factory | Lost 4 parts (1n3w) 5449 | -7/Factory | Self-destructed Last Messages --------------- 05385_ Lgt. Assault Rifle destroyed. 05387_ Com. Wheel destroyed. 05387_ Penetrated by Slug. 05393_ H-55 Commando destroyed. 05396_ Acquired Assault Rifle. 05412_ R-06 Scavenger collects Unknown Leg. 05416_ R-06 Scavenger collects Targeting Computer. 05417_ K-01 Serf collects debris. 05425_ Assault Rifle destroyed. 05427_ Destroyed Imp. Heat Sink. 05427_ Destroyed Shock Rifle. 05428_ P-60 Hacker resets U-05 Engineer, system corruption cleaned. 05429_ P-60 Hacker destroyed. 05431_ R-06 Scavenger collects Gravmag System. 05432_ K-01 Serf collects debris. 05432_ Acquired 47 matter. 05436_ K-01 Serf collects debris. 05437_ R-06 Scavenger collects Shock Rifle. 05440_ K-01 Serf collects debris. 05449_ Connecting with Terminal... Map ----- +----------------------------------------------------+ | ?????????????????????????????????????????????????? | | ?????????????????????????????????????????????????? | | ?????????????????????????????????????????????????? | | ?????????????????????????????????????????????????? | | ?????????????????????????????????????????????????? | | ?????????????????? ??????????????????????????????? | | ??????????????????????#??????????????????????????? | | ?????????????? ????? ???????? ?????????????????? | | ??????????????? ? ?? ?????? ??????? ? ????? | | ???????????????? ????? ?? ? Y?????? ????? ??? | | ??????????? ? ?? ? ? ? ??? ?????????? ? ?? | | ????????????? ??? ? ?? ? ?? ? ?? ?? ? ?? | | ????????###?#############+##? ?? ?????? | | ??????? ###?## ? # ?#?#????#??? | | ?????##??###?# """"" ### ### ? ????? | | ???????####### " " """"" ### ###"" ? ??? | | ???????####### "T"? """ ### ###"? ?????? | | ???????#######?""" ### #?#"??? ? ? ? | | #??#######?### ?? ?## #?# ? | | ##??#?######################### ##Y? ? ??? | | ################### ### ### ? ? ?? | | ############# ### ### ? ?? ? | | """ ############# ### ### ? ? ? | | """ ############# ### #?# ???? | | """ ############# = " ### ### ?""""""?? | | ############# @T ### ### ? ?? | | """ ############# " ### ############?# | | """ ############# ### ## ### | | """ ################+####### # """ #? | | ############## # ""F """ ##? | | +################### # "" """ #? | | + """ """ ## | | """ """ """ # """ ## | | % """ """ """ # ##? | | ######### """ """ """ # ## | | ######### ###########? | | +#######+########### """ """ """ "" #? #####?# | | # ##### """ """ """ """## ### "? | | !# ##### """ """ """ R"## ? ?"" | | # + """#?##?#? ?? | | # """ """ ##### #####?##????? | | # """ """ ##### ########? ? | | " # """ """ #######+#### #####??#?? ?? | | " # ##### # ####?#?###?#? | | " # """ """ ##### """ # #?#######??#? | | # """ """ ##### """ # #?####?#???#? | | ### """ """ ##### """ ##############?#?#??#??? | | ### ##### ####?#########???#?????? | | ### ##### ##############?#?#????#? | | ####################################?#??#?##?????? | +----------------------------------------------------+ Best States ------------- Heat Dissipation 45 Energy Generation 16 Energy Capacity 290 Matter Stores 300 Matter Capacity 300 Sight Range 16 Terrain Scan Range 24 Terrain Scan Density 210 Armor Coverage 150 Core Shielding 20 Evasion (%) 44 Targeting Accuracy 8 Recoil Reduction 2 Item Schematics ----------------- Hcp. Storage Unit | -10/Materials | Hacked Exp. Sensor Array | -7/Factory | Scanalyzed Med. Storage Unit | -7/Factory | Scanalyzed Lrg. Storage Unit | -7/Factory | Scanalyzed Robot Schematics ------------------ None Fabricated ------------ Nothing Alien Tech Used ----------------- None Achievements -------------- None Challenges ------------ None Game ------ Seed HeavyMeleeNetwork Manual? 0 Play Time 00:55:08 Cumulative 227.3 hours Start 2020.06.12 @ 13:45:16 End 2020.06.12 @ 17:12:44 Sessions 3 Manual Loads 0 Difficulty Rogue Special Mode None Game No. 297 Rogue 286 Adventurer 11 Explorer 0 Win Type - Total 0 Types 0/0/0/0/0/0/0 Lore% 53 Gallery% 66 Achievement% 45 Wizard Run 0 Options --------- ASCII 0 Keyboard 1 Movement Numpad Keybinds 0 Fullscreen 1 Font 12/Terminus Map View 83x54 Tactical HUD 1 Map Filters NONE Filters NONE Steam 1 RUN: f7728104-846b-42c4-b1c9-b976b78b94f2